[Event "*** Titled Tuesday Blitz"]
[Site "Chess.com"]
[Date "2020.12.29"]
[Round "4"]
[White "maximnovik"]
[Black "konradrutkowski"]
[Result "1-0"]
[WhiteElo "2615"]
[BlackElo "2385"]
[TimeControl "180+1"]
[EndTime "10:39:22 PST"]
[Termination "maximnovik won on time"]

1. Nf3 {[%clk 0:02:52.8]} 1... Nf6 {[%clk 0:02:57.6]} 2. g3 {[%clk 0:02:52.6]}
2... g6 {[%clk 0:02:56.3]} 3. Bg2 {[%clk 0:02:53]} 3... Bg7 {[%clk 0:02:53.1]}
4. O-O {[%clk 0:02:53.5]} 4... O-O {[%clk 0:02:52]} 5. d4 {[%clk 0:02:53.9]}
5... d6 {[%clk 0:02:47.8]} 6. c4 {[%clk 0:02:53.3]} 6... Nc6 {[%clk 0:02:45.4]}
7. Nc3 {[%clk 0:02:52.5]} 7... a6 {[%clk 0:02:44.2]} 8. Re1 {[%clk 0:02:49.5]}
8... Rb8 {[%clk 0:02:38.9]} 9. Rb1 {[%clk 0:02:48.5]} 9... b5 {[%clk 0:02:25.4]}
10. cxb5 {[%clk 0:02:48]} 10... axb5 {[%clk 0:02:26.3]} 11. b4 {[%clk
0:02:48.1]} 11... Re8 {[%clk 0:02:20]} 12. e4 {[%clk 0:02:26.5]} 12... e5 {[%clk
0:02:12.3]} 13. d5 {[%clk 0:02:20.9]} 13... Nd4 {[%clk 0:02:05.9]} 14. Be3
{[%clk 0:01:52.8]} 14... Ng4 {[%clk 0:01:44.6]} 15. Bd2 {[%clk 0:01:45.2]} 15...
f5 {[%clk 0:01:30.3]} 16. h3 {[%clk 0:01:37.1]} 16... Nf6 {[%clk 0:01:27.9]} 17.
Bg5 {[%clk 0:01:28]} 17... h6 {[%clk 0:01:25]} 18. Bxf6 {[%clk 0:01:24.4]} 18...
Qxf6 {[%clk 0:01:25.2]} 19. Qd3 {[%clk 0:01:17.4]} 19... Rf8 {[%clk 0:01:16.3]}
20. Nh4 {[%clk 0:00:43]} 20... f4 {[%clk 0:01:10.3]} 21. Rbc1 {[%clk 0:00:15.8]}
21... f3 {[%clk 0:01:03.1]} 22. Bf1 {[%clk 0:00:14.9]} 22... g5 {[%clk
0:01:01.1]} 23. Nf5 {[%clk 0:00:13.9]} 23... Bxf5 {[%clk 0:00:57.5]} 24. exf5
{[%clk 0:00:13.6]} 24... Qxf5 {[%clk 0:00:55.7]} 25. Qxf5 {[%clk 0:00:13.2]}
25... Rxf5 {[%clk 0:00:56]} 26. Ne4 {[%clk 0:00:13]} 26... Rf7 {[%clk
0:00:52.7]} 27. Rc3 {[%clk 0:00:11.4]} 27... Ra8 {[%clk 0:00:50.8]} 28. a3
{[%clk 0:00:10.8]} 28... Ra7 {[%clk 0:00:32.8]} 29. Rec1 {[%clk 0:00:11.2]}
29... Kh7 {[%clk 0:00:16.1]} 30. Bd3 {[%clk 0:00:11.6]} 30... Ne2+ {[%clk
0:00:11.1]} 31. Bxe2 {[%clk 0:00:07.6]} 31... fxe2 {[%clk 0:00:10.9]} 32. Re1
{[%clk 0:00:08.1]} 32... Kg6 {[%clk 0:00:02.5]} 33. Rxe2 {[%clk 0:00:08]} 33...
h5 {[%clk 0:00:03]} 34. Kg2 {[%clk 0:00:07.6]} 34... g4 {[%clk 0:00:03.3]} 35.
hxg4 {[%clk 0:00:07.1]} 35... hxg4 {[%clk 0:00:04.2]} 36. Rec2 {[%clk
0:00:06.5]} 36... Bh6 {[%clk 0:00:04.1]} 37. Rc6 {[%clk 0:00:05.1]} 37... Kf5
{[%clk 0:00:01.5]} 38. Re2 {[%clk 0:00:04.5]} 1-0

[Event "*** Titled Tuesday Blitz"]
[Site "Chess.com"]
[Date "2020.12.29"]
[Round "4"]
[White "GigaQuparadze"]
[Black "TheBigBoss04"]
[Result "1-0"]
[WhiteElo "2898"]
[BlackElo "2732"]
[TimeControl "180+1"]
[EndTime "10:39:23 PST"]
[Termination "GigaQuparadze won on time"]

1. e4 {[%clk 0:03:00.9]} 1... c5 {[%clk 0:02:59.7]} 2. Ne2 {[%clk 0:03:00.5]}
2... Nc6 {[%clk 0:02:56.8]} 3. Nbc3 {[%clk 0:03:00.2]} 3... Nf6 {[%clk 0:02:55]}
4. g3 {[%clk 0:03:00.2]} 4... d5 {[%clk 0:02:54.8]} 5. exd5 {[%clk 0:02:59.6]}
5... Nxd5 {[%clk 0:02:55.4]} 6. Bg2 {[%clk 0:02:59.3]} 6... Nf6 {[%clk
0:02:50.9]} 7. O-O {[%clk 0:02:58.2]} 7... e6 {[%clk 0:02:48.1]} 8. b3 {[%clk
0:02:57.7]} 8... Be7 {[%clk 0:02:46.3]} 9. Bb2 {[%clk 0:02:57.9]} 9... O-O
{[%clk 0:02:47]} 10. Re1 {[%clk 0:02:58.1]} 10... e5 {[%clk 0:02:32.6]} 11. h3
{[%clk 0:02:55.8]} 11... Bf5 {[%clk 0:02:30.5]} 12. g4 {[%clk 0:02:55.9]} 12...
Bg6 {[%clk 0:02:27.5]} 13. Ng3 {[%clk 0:02:55.9]} 13... Bd6 {[%clk 0:02:01.1]}
14. d3 {[%clk 0:02:54.2]} 14... a6 {[%clk 0:01:55.3]} 15. h4 {[%clk 0:02:53.9]}
15... h6 {[%clk 0:01:49.9]} 16. h5 {[%clk 0:02:53.8]} 16... Bh7 {[%clk
0:01:49.6]} 17. Nce4 {[%clk 0:02:53.3]} 17... Re8 {[%clk 0:01:45.2]} 18. Nxd6
{[%clk 0:02:37.3]} 18... Qxd6 {[%clk 0:01:43.6]} 19. Bxc6 {[%clk 0:02:37.2]}
19... bxc6 {[%clk 0:01:25.2]} 20. Qf3 {[%clk 0:02:36.3]} 20... Nd5 {[%clk
0:01:17.9]} 21. Ne4 {[%clk 0:02:30.7]} 21... Qe7 {[%clk 0:01:15.8]} 22. Rad1
{[%clk 0:02:21.9]} 22... Rad8 {[%clk 0:01:12.1]} 23. Nc3 {[%clk 0:02:17.4]}
23... Nf4 {[%clk 0:01:04]} 24. Ne2 {[%clk 0:02:16]} 24... Ne6 {[%clk 0:00:57.6]}
25. Ng3 {[%clk 0:02:11.2]} 25... Nd4 {[%clk 0:00:45.9]} 26. Bxd4 {[%clk
0:02:08.5]} 26... cxd4 {[%clk 0:00:46.8]} 27. Re2 {[%clk 0:02:04.2]} 27... Qg5
{[%clk 0:00:43.3]} 28. Rde1 {[%clk 0:02:03.3]} 28... Rd6 {[%clk 0:00:41.8]} 29.
Ne4 {[%clk 0:02:03]} 29... Bxe4 {[%clk 0:00:41.3]} 30. Rxe4 {[%clk 0:02:03.9]}
30... Rf6 {[%clk 0:00:39.3]} 31. Qg3 {[%clk 0:02:04.2]} 31... Rfe6 {[%clk
0:00:36.6]} 32. Kg2 {[%clk 0:02:02.7]} 32... c5 {[%clk 0:00:30.3]} 33. R1e2
{[%clk 0:01:59.9]} 33... a5 {[%clk 0:00:26.1]} 34. a4 {[%clk 0:01:59]} 34... Qf6
{[%clk 0:00:25.8]} 35. Qf3 {[%clk 0:01:55.5]} 35... Qd8 {[%clk 0:00:25.3]} 36.
Qg3 {[%clk 0:01:51.7]} 36... Qf6 {[%clk 0:00:25.1]} 37. Kh3 {[%clk 0:01:51.8]}
37... Qg5 {[%clk 0:00:24]} 38. Qh4 {[%clk 0:01:50.8]} 38... Qc1 {[%clk
0:00:23.2]} 39. Kg2 {[%clk 0:01:48.2]} 39... Kf8 {[%clk 0:00:17.6]} 40. Qg3
{[%clk 0:01:37.7]} 40... Qg5 {[%clk 0:00:16.6]} 41. c3 {[%clk 0:01:36.4]} 41...
Kg8 {[%clk 0:00:11]} 42. cxd4 {[%clk 0:01:36.1]} 42... cxd4 {[%clk 0:00:11.7]}
43. Rc2 {[%clk 0:01:31.2]} 43... Rb6 {[%clk 0:00:11.1]} 44. Rc5 {[%clk
0:01:30.6]} 44... Rxb3 {[%clk 0:00:07.1]} 45. Rxd4 {[%clk 0:01:24.1]} 45... Qe7
{[%clk 0:00:04.2]} 46. Rdd5 {[%clk 0:01:23]} 46... e4 {[%clk 0:00:04.5]} 47. Re5
{[%clk 0:01:17.7]} 47... Rxd3 {[%clk 0:00:02.7]} 48. Qf4 {[%clk 0:01:04.5]}
48... Qf8 {[%clk 0:00:03]} 49. Qxe4 {[%clk 0:01:02.4]} 49... Rdd8 {[%clk
0:00:02.7]} 50. Rxa5 {[%clk 0:01:01.5]} 50... Rxe5 {[%clk 0:00:02.6]} 51. Rxe5
{[%clk 0:01:02.4]} 51... Qa3 {[%clk 0:00:03.1]} 52. a5 {[%clk 0:01:01.9]} 52...
Qb3 {[%clk 0:00:02.1]} 53. Re8+ {[%clk 0:01:01.6]} 53... Rxe8 {[%clk 0:00:02.4]}
54. Qxe8+ {[%clk 0:01:02.1]} 54... Kh7 {[%clk 0:00:03.3]} 55. Qe4+ {[%clk
0:01:02.7]} 55... Kg8 {[%clk 0:00:03.3]} 56. a6 {[%clk 0:01:03]} 56... Qb6
{[%clk 0:00:03]} 57. Qa8+ {[%clk 0:00:55.7]} 57... Kh7 {[%clk 0:00:02.9]} 58. a7
{[%clk 0:00:56.2]} 58... Qe6 {[%clk 0:00:03]} 59. Qf3 {[%clk 0:00:55.4]} 1-0

[Event "*** Titled Tuesday Blitz"]
[Site "Chess.com"]
[Date "2020.12.29"]
[Round "4"]
[White "Grammnik"]
[Black "KetiGrant"]
[Result "1-0"]
[WhiteElo "2317"]
[BlackElo "2443"]
[TimeControl "180+1"]
[EndTime "10:39:23 PST"]
[Termination "Grammnik won on time"]

1. d4 {[%clk 0:03:00.9]} 1... Nf6 {[%clk 0:02:59.1]} 2. c4 {[%clk 0:03:00]} 2...
g6 {[%clk 0:02:59.6]} 3. Nc3 {[%clk 0:02:59.5]} 3... Bg7 {[%clk 0:03:00.5]} 4.
e4 {[%clk 0:02:59.2]} 4... d6 {[%clk 0:03:01.4]} 5. Nf3 {[%clk 0:02:59.6]} 5...
O-O {[%clk 0:03:01.2]} 6. Be2 {[%clk 0:03:00.1]} 6... e5 {[%clk 0:03:01]} 7. O-O
{[%clk 0:02:59.3]} 7... Nc6 {[%clk 0:03:01.1]} 8. d5 {[%clk 0:02:59.3]} 8... Ne7
{[%clk 0:03:01.2]} 9. Nd2 {[%clk 0:02:59.1]} 9... Nd7 {[%clk 0:02:52.9]} 10. b4
{[%clk 0:02:58.5]} 10... a5 {[%clk 0:02:50.3]} 11. bxa5 {[%clk 0:02:58.4]} 11...
Rxa5 {[%clk 0:02:48.9]} 12. Nb3 {[%clk 0:02:58.2]} 12... Ra8 {[%clk 0:02:48.2]}
13. Be3 {[%clk 0:02:57.7]} 13... b6 {[%clk 0:02:46.8]} 14. a4 {[%clk 0:02:57.2]}
14... f5 {[%clk 0:02:45]} 15. f3 {[%clk 0:02:56.2]} 15... f4 {[%clk 0:02:41.9]}
16. Bf2 {[%clk 0:02:56.3]} 16... g5 {[%clk 0:02:38.1]} 17. a5 {[%clk 0:02:55.4]}
17... bxa5 {[%clk 0:02:09.9]} 18. c5 {[%clk 0:02:48.3]} 18... Nf6 {[%clk
0:01:58.2]} 19. Rxa5 {[%clk 0:02:44.7]} 19... Rxa5 {[%clk 0:01:56.2]} 20. Nxa5
{[%clk 0:02:45.6]} 20... h5 {[%clk 0:01:52.2]} 21. Nc6 {[%clk 0:02:42.2]} 21...
Qd7 {[%clk 0:01:45]} 22. Bb5 {[%clk 0:02:06]} 22... Nxc6 {[%clk 0:01:44.3]} 23.
dxc6 {[%clk 0:02:04.6]} 23... Qe7 {[%clk 0:01:44.6]} 24. cxd6 {[%clk 0:02:04.2]}
24... cxd6 {[%clk 0:01:44.4]} 25. Bc4+ {[%clk 0:02:02.8]} 25... Kh8 {[%clk
0:01:42.7]} 26. Qa1 {[%clk 0:01:39.5]} 26... g4 {[%clk 0:01:40.5]} 27. Qa7
{[%clk 0:01:17.8]} 27... Qe8 {[%clk 0:01:33.2]} 28. Qc7 {[%clk 0:01:08.3]} 28...
Qg6 {[%clk 0:01:32.1]} 29. Be2 {[%clk 0:00:53.1]} 29... g3 {[%clk 0:00:56.3]}
30. hxg3 {[%clk 0:00:42.9]} 30... fxg3 {[%clk 0:00:56.4]} 31. Be3 {[%clk
0:00:42.6]} 31... Bh6 {[%clk 0:00:54]} 32. Bxh6 {[%clk 0:00:25.6]} 32... Qxh6
{[%clk 0:00:53.5]} 33. Qxd6 {[%clk 0:00:26]} 33... Re8 {[%clk 0:00:36.3]} 34. f4
{[%clk 0:00:24.6]} 34... exf4 {[%clk 0:00:30.2]} 35. e5 {[%clk 0:00:20.1]} 35...
Ng8 {[%clk 0:00:11.1]} 36. Bd3 {[%clk 0:00:13.1]} 36... Qg5 {[%clk 0:00:06.8]}
37. e6 {[%clk 0:00:08.8]} 37... Rxe6 {[%clk 0:00:04.2]} 38. Qxf4 {[%clk
0:00:07.3]} 38... Qc5+ {[%clk 0:00:02.9]} 39. Kh1 {[%clk 0:00:05.8]} 39... Qxc3
{[%clk 0:00:02.6]} 40. Qf5 {[%clk 0:00:04.7]} 1-0

[Event "*** Titled Tuesday Blitz"]
[Site "Chess.com"]
[Date "2020.12.29"]
[Round "4"]
[White "stephan97"]
[Black "Abdimalik_Abdisalimov"]
[Result "1-0"]
[WhiteElo "2242"]
[BlackElo "2430"]
[TimeControl "180+1"]
[EndTime "10:39:23 PST"]
[Termination "stephan97 won on time"]

1. d4 {[%clk 0:02:58.7]} 1... Nf6 {[%clk 0:02:58.5]} 2. c4 {[%clk 0:02:58.7]}
2... g6 {[%clk 0:02:58]} 3. Nc3 {[%clk 0:02:58.7]} 3... Bg7 {[%clk 0:02:58.3]}
4. e4 {[%clk 0:02:58.8]} 4... d6 {[%clk 0:02:57.8]} 5. Nf3 {[%clk 0:02:58.9]}
5... O-O {[%clk 0:02:57.6]} 6. Be2 {[%clk 0:02:59.3]} 6... Bg4 {[%clk
0:02:56.4]} 7. Be3 {[%clk 0:02:55.2]} 7... Nfd7 {[%clk 0:02:54.4]} 8. Ng1 {[%clk
0:02:54.8]} 8... Bxe2 {[%clk 0:02:49.8]} 9. Ngxe2 {[%clk 0:02:55.7]} 9... e5
{[%clk 0:02:47.8]} 10. Qd2 {[%clk 0:02:52]} 10... Nc6 {[%clk 0:02:29.3]} 11. d5
{[%clk 0:02:43.6]} 11... Ne7 {[%clk 0:02:25.7]} 12. g4 {[%clk 0:02:35.6]} 12...
a6 {[%clk 0:02:22.1]} 13. h4 {[%clk 0:02:33]} 13... Rb8 {[%clk 0:02:00.9]} 14.
h5 {[%clk 0:02:29.7]} 14... b5 {[%clk 0:01:58.1]} 15. hxg6 {[%clk 0:02:26.3]}
15... fxg6 {[%clk 0:01:55.1]} 16. Bh6 {[%clk 0:02:22.1]} 16... Bxh6 {[%clk
0:01:28.7]} 17. Qxh6 {[%clk 0:02:20.1]} 17... Rf7 {[%clk 0:01:28.6]} 18. f4
{[%clk 0:01:57]} 18... Qf8 {[%clk 0:01:24.3]} 19. Qxf8+ {[%clk 0:01:55.8]} 19...
Rfxf8 {[%clk 0:01:19.9]} 20. cxb5 {[%clk 0:01:55.6]} 20... axb5 {[%clk
0:01:17.2]} 21. f5 {[%clk 0:01:54.1]} 21... b4 {[%clk 0:01:13.9]} 22. Nd1 {[%clk
0:01:51.9]} 22... Nf6 {[%clk 0:01:13.8]} 23. Nf2 {[%clk 0:01:50.9]} 23... gxf5
{[%clk 0:01:05.1]} 24. gxf5 {[%clk 0:01:48.4]} 24... c6 {[%clk 0:01:04.7]} 25.
dxc6 {[%clk 0:01:42.2]} 25... Nxc6 {[%clk 0:01:05.4]} 26. O-O-O {[%clk
0:01:31.7]} 26... Rbd8 {[%clk 0:00:52.5]} 27. Kb1 {[%clk 0:01:14.9]} 27... Kf7
{[%clk 0:00:46.5]} 28. Ng3 {[%clk 0:01:07.3]} 28... Rg8 {[%clk 0:00:44.1]} 29.
Nh5 {[%clk 0:01:06.3]} 29... Ne8 {[%clk 0:00:32.4]} 30. Rdg1 {[%clk 0:00:52.3]}
30... Rxg1+ {[%clk 0:00:23.5]} 31. Rxg1 {[%clk 0:00:52.2]} 31... Nd4 {[%clk
0:00:23.5]} 32. Ng4 {[%clk 0:00:45.6]} 32... b3 {[%clk 0:00:18.3]} 33. axb3
{[%clk 0:00:42.8]} 33... Rb8 {[%clk 0:00:14.2]} 34. Nh6+ {[%clk 0:00:42.3]}
34... Ke7 {[%clk 0:00:13.8]} 35. Ng7 {[%clk 0:00:31.7]} 35... Rxb3 {[%clk
0:00:12]} 36. Nxe8 {[%clk 0:00:30]} 36... Kxe8 {[%clk 0:00:12.9]} 37. f6 {[%clk
0:00:20.6]} 37... Rf3 {[%clk 0:00:10.4]} 38. Rg8+ {[%clk 0:00:18.2]} 38... Kd7
{[%clk 0:00:08.9]} 39. f7 {[%clk 0:00:18.5]} 39... Ne6 {[%clk 0:00:06.3]} 40.
Nf5 {[%clk 0:00:18.5]} 1-0

[Event "*** Titled Tuesday Blitz"]
[Site "Chess.com"]
[Date "2020.12.29"]
[Round "4"]
[White "Firegrizzly"]
[Black "Arseniy_Nesterov"]
[Result "0-1"]
[WhiteElo "2597"]
[BlackElo "2773"]
[TimeControl "180+1"]
[EndTime "10:39:24 PST"]
[Termination "Arseniy_Nesterov won by resignation"]

1. e4 {[%clk 0:03:00.9]} 1... e5 {[%clk 0:02:59]} 2. Nf3 {[%clk 0:02:59.1]} 2...
Nc6 {[%clk 0:02:59.2]} 3. Bc4 {[%clk 0:02:58.8]} 3... Bc5 {[%clk 0:02:58.8]} 4.
c3 {[%clk 0:02:58]} 4... Nf6 {[%clk 0:02:58.8]} 5. d4 {[%clk 0:02:57.2]} 5...
exd4 {[%clk 0:02:58.9]} 6. e5 {[%clk 0:02:54.9]} 6... d5 {[%clk 0:02:56.2]} 7.
Be2 {[%clk 0:02:54.5]} 7... Ne4 {[%clk 0:02:55.3]} 8. cxd4 {[%clk 0:02:54.6]}
8... Bb6 {[%clk 0:02:55.3]} 9. O-O {[%clk 0:02:53.4]} 9... O-O {[%clk 0:02:55]}
10. h3 {[%clk 0:02:46.8]} 10... f6 {[%clk 0:02:49]} 11. Nc3 {[%clk 0:02:37.5]}
11... fxe5 {[%clk 0:02:32]} 12. dxe5 {[%clk 0:02:35.4]} 12... Be6 {[%clk
0:01:58.2]} 13. Nxe4 {[%clk 0:02:28.9]} 13... dxe4 {[%clk 0:01:58.4]} 14. Ng5
{[%clk 0:02:29]} 14... Qxd1 {[%clk 0:01:53.1]} 15. Bxd1 {[%clk 0:02:28.8]} 15...
Bc4 {[%clk 0:01:49.9]} 16. Bb3 {[%clk 0:02:22.8]} 16... Bxb3 {[%clk 0:01:40.9]}
17. axb3 {[%clk 0:02:23.7]} 17... Nxe5 {[%clk 0:01:41.4]} 18. Nxe4 {[%clk
0:02:23.2]} 18... Nd3 {[%clk 0:01:35.7]} 19. Be3 {[%clk 0:02:19.6]} 19... Bxe3
{[%clk 0:01:32.8]} 20. fxe3 {[%clk 0:02:20.5]} 20... Nxb2 {[%clk 0:01:22.5]} 21.
Rxf8+ {[%clk 0:02:19.4]} 21... Kxf8 {[%clk 0:01:22.1]} 22. Nc5 {[%clk
0:02:18.9]} 22... Ke7 {[%clk 0:01:06.6]} 23. Nxb7 {[%clk 0:02:09.1]} 23... Nd3
{[%clk 0:01:02.2]} 24. Na5 {[%clk 0:02:05.5]} 24... Ne5 {[%clk 0:00:57.7]} 25.
Rc1 {[%clk 0:01:59.8]} 25... Kd6 {[%clk 0:00:47.9]} 26. Rd1+ {[%clk 0:01:46.8]}
26... Kc5 {[%clk 0:00:36.2]} 27. e4 {[%clk 0:01:45.5]} 27... c6 {[%clk
0:00:32.7]} 28. Rc1+ {[%clk 0:01:42.2]} 28... Kb4 {[%clk 0:00:21.4]} 29. Nxc6+
{[%clk 0:01:38.7]} 29... Nxc6 {[%clk 0:00:21.2]} 30. Rxc6 {[%clk 0:01:39]} 30...
Kxb3 {[%clk 0:00:21.7]} 31. Rc7 {[%clk 0:01:39.4]} 31... a5 {[%clk 0:00:19.8]}
32. Rxg7 {[%clk 0:01:36.1]} 32... a4 {[%clk 0:00:20.1]} 33. Rb7+ {[%clk
0:01:34.3]} 33... Kc2 {[%clk 0:00:19.7]} 34. Rc7+ {[%clk 0:01:33.2]} 34... Kd2
{[%clk 0:00:17.6]} 35. Kf2 {[%clk 0:01:26.1]} 35... a3 {[%clk 0:00:17.7]} 36.
Rd7+ {[%clk 0:01:26]} 36... Kc2 {[%clk 0:00:15.9]} 37. Rc7+ {[%clk 0:01:26.1]}
37... Kd3 {[%clk 0:00:16.2]} 38. Rd7+ {[%clk 0:01:20.7]} 38... Kxe4 {[%clk
0:00:15.3]} 39. Re7+ {[%clk 0:01:17.7]} 39... Kd5 {[%clk 0:00:14]} 40. Rd7+
{[%clk 0:01:16.2]} 40... Kc5 {[%clk 0:00:12.4]} 41. Rc7+ {[%clk 0:01:15.6]}
41... Kd6 {[%clk 0:00:12.8]} 42. Rc1 {[%clk 0:01:14.6]} 42... a2 {[%clk
0:00:12.8]} 43. Ra1 {[%clk 0:01:13.8]} 43... Kd5 {[%clk 0:00:13]} 44. g4 {[%clk
0:01:10.5]} 44... Kc4 {[%clk 0:00:07.5]} 45. Kg3 {[%clk 0:01:08.2]} 45... Kb3
{[%clk 0:00:06.4]} 46. Kh4 {[%clk 0:01:08.4]} 46... Ra5 {[%clk 0:00:06.2]} 47.
g5 {[%clk 0:01:07.4]} 47... Kb2 {[%clk 0:00:06.6]} 48. Rg1 {[%clk 0:01:03.9]}
48... a1=Q {[%clk 0:00:06.6]} 49. Rxa1 {[%clk 0:01:03]} 49... Kxa1 {[%clk
0:00:07.5]} 50. Kh5 {[%clk 0:01:03.1]} 50... Ra6 {[%clk 0:00:07]} 51. h4 {[%clk
0:01:02.8]} 51... Kb2 {[%clk 0:00:07]} 52. Kg4 {[%clk 0:01:03.3]} 52... Kc3
{[%clk 0:00:07.3]} 53. h5 {[%clk 0:01:02.7]} 53... Kd4 {[%clk 0:00:07.6]} 54.
Kf5 {[%clk 0:00:59]} 54... Ra1 {[%clk 0:00:05.3]} 55. g6 {[%clk 0:00:58.5]}
55... Rf1+ {[%clk 0:00:05]} 56. Kg5 {[%clk 0:00:57.7]} 56... hxg6 {[%clk
0:00:05.2]} 57. hxg6 {[%clk 0:00:51.6]} 57... Ke5 {[%clk 0:00:05]} 58. g7 {[%clk
0:00:52]} 58... Rg1+ {[%clk 0:00:05.3]} 59. Kh6 {[%clk 0:00:51.9]} 59... Kf6
{[%clk 0:00:05.7]} 60. g8=N+ {[%clk 0:00:45.6]} 60... Rxg8 {[%clk 0:00:05.9]}
0-1

[Event "*** Titled Tuesday Blitz"]
[Site "Chess.com"]
[Date "2020.12.29"]
[Round "4"]
[White "IngOscarArdila"]
[Black "Tagliata"]
[Result "0-1"]
[WhiteElo "2104"]
[BlackElo "2294"]
[TimeControl "180+1"]
[EndTime "10:39:25 PST"]
[Termination "Tagliata won by resignation"]

1. d4 {[%clk 0:03:00.9]} 1... d5 {[%clk 0:02:59.3]} 2. c4 {[%clk 0:02:58.5]}
2... e6 {[%clk 0:02:59.4]} 3. Nc3 {[%clk 0:02:57.5]} 3... f5 {[%clk 0:02:59.9]}
4. cxd5 {[%clk 0:02:55]} 4... exd5 {[%clk 0:02:59.2]} 5. Nf3 {[%clk 0:02:55.3]}
5... Nf6 {[%clk 0:02:59.2]} 6. g3 {[%clk 0:02:55]} 6... c6 {[%clk 0:02:58.7]} 7.
Bg2 {[%clk 0:02:55.3]} 7... Bd6 {[%clk 0:02:59.4]} 8. O-O {[%clk 0:02:55.3]}
8... O-O {[%clk 0:02:59.3]} 9. Bg5 {[%clk 0:02:52.9]} 9... h6 {[%clk 0:02:56.8]}
10. Bxf6 {[%clk 0:02:52.6]} 10... Qxf6 {[%clk 0:02:56.8]} 11. e3 {[%clk
0:02:53.2]} 11... Nd7 {[%clk 0:02:56.4]} 12. Qc2 {[%clk 0:02:51.2]} 12... Qe7
{[%clk 0:02:56]} 13. a3 {[%clk 0:02:49.7]} 13... Nf6 {[%clk 0:02:55.7]} 14. b4
{[%clk 0:02:48.4]} 14... a6 {[%clk 0:02:55.1]} 15. Rab1 {[%clk 0:02:47]} 15...
Bd7 {[%clk 0:02:55.1]} 16. Na4 {[%clk 0:02:39.4]} 16... Rae8 {[%clk 0:02:50.3]}
17. Nc5 {[%clk 0:02:38.3]} 17... Bc8 {[%clk 0:02:40.9]} 18. a4 {[%clk 0:02:38]}
18... Ne4 {[%clk 0:02:40.1]} 19. Rfc1 {[%clk 0:02:28.5]} 19... Nxc5 {[%clk
0:02:04.6]} 20. bxc5 {[%clk 0:02:28.1]} 20... Bc7 {[%clk 0:02:00.5]} 21. Rb2
{[%clk 0:02:17.3]} 21... Qe4 {[%clk 0:01:55]} 22. Rcb1 {[%clk 0:02:09.9]} 22...
g5 {[%clk 0:01:51.6]} 23. Qxe4 {[%clk 0:01:55.5]} 23... fxe4 {[%clk 0:01:49.5]}
24. Nd2 {[%clk 0:01:52.1]} 24... Rf7 {[%clk 0:01:43.3]} 25. Nf1 {[%clk 0:01:51]}
25... Ba5 {[%clk 0:01:40.9]} 26. Rc2 {[%clk 0:01:44.3]} 26... Ref8 {[%clk
0:01:40.6]} 27. Rbb2 {[%clk 0:01:44.3]} 27... h5 {[%clk 0:01:40.4]} 28. h3
{[%clk 0:01:42.2]} 28... Kg7 {[%clk 0:01:36.3]} 29. Nh2 {[%clk 0:01:39.8]} 29...
h4 {[%clk 0:01:26.8]} 30. g4 {[%clk 0:01:39.6]} 30... Kf6 {[%clk 0:01:16.9]} 31.
Rb1 {[%clk 0:01:38.9]} 31... Ke7 {[%clk 0:01:16.3]} 32. Rf1 {[%clk 0:01:38.7]}
32... Kd8 {[%clk 0:01:15.3]} 33. f3 {[%clk 0:01:37.3]} 33... Bc7 {[%clk
0:00:52.2]} 34. Rcc1 {[%clk 0:01:01.9]} 34... Bxh2+ {[%clk 0:00:36.7]} 35. Kxh2
{[%clk 0:01:01.5]} 35... exf3 {[%clk 0:00:36.3]} 36. Bh1 {[%clk 0:00:59.8]}
36... Re7 {[%clk 0:00:29]} 37. Rc3 {[%clk 0:00:58.2]} 37... Ref7 {[%clk
0:00:27.1]} 38. Kg1 {[%clk 0:00:57.1]} 38... Be6 {[%clk 0:00:24.7]} 39. Kf2
{[%clk 0:00:56.7]} 39... Rf6 {[%clk 0:00:24.9]} 40. Rb1 {[%clk 0:00:55.4]} 40...
Kc8 {[%clk 0:00:22.8]} 41. Rcb3 {[%clk 0:00:53.7]} 41... R8f7 {[%clk 0:00:22.1]}
42. a5 {[%clk 0:00:53.1]} 42... Kb8 {[%clk 0:00:20.1]} 43. Rb6 {[%clk
0:00:50.7]} 43... Kc8 {[%clk 0:00:19.6]} 44. R6b4 {[%clk 0:00:50]} 44... Rc7
{[%clk 0:00:18.5]} 45. Rb6 {[%clk 0:00:49]} 45... Rcf7 {[%clk 0:00:19.4]} 46.
R1b3 {[%clk 0:00:48.2]} 46... Rc7 {[%clk 0:00:17.2]} 47. Rb2 {[%clk 0:00:44.1]}
47... Bf7 {[%clk 0:00:17]} 48. Ke1 {[%clk 0:00:38.6]} 48... Bg6 {[%clk
0:00:16.9]} 49. Rf2 {[%clk 0:00:37.5]} 49... Be4 {[%clk 0:00:15.9]} 50. Kd2
{[%clk 0:00:34.2]} 50... Rcf7 {[%clk 0:00:15.8]} 51. Rb1 {[%clk 0:00:33.9]}
51... Bxb1 {[%clk 0:00:14.9]} 52. Rf1 {[%clk 0:00:32.8]} 52... f2 {[%clk
0:00:13]} 53. Rxf2 {[%clk 0:00:32.3]} 53... Rxf2+ {[%clk 0:00:12.3]} 54. Kc3
{[%clk 0:00:32.1]} 54... Rh2 {[%clk 0:00:12]} 0-1